fUSD/lending_fUSD_20240612
["ID","MTS","AMOUNT","RATE_DAILY","PERIOD"]
[329198618,1718171459570,-500.0,0.00019315,2]
[329198619,1718171459580,-500.0,0.00019315,2]
[329198620,1718171459592,-1001.11,0.00019315,2]
[329198621,1718171459603,-598.29,0.00019315,2]
[329198622,1718171459615,-500.0,0.00019315,2]
[329198623,1718171459627,-560.07,0.00019315,2]
[329198624,1718171459639,-1784.49,0.00019315,2]
[329198625,1718171459649,-1144.99,0.00019315,2]
[329198626,1718171459660,-500.0,0.00019315,2]
[329198627,1718171459671,-500.0,0.00019315,2]
[329198628,1718171459682,-500.0,0.00019315,2]
[329198629,1718171459692,-606.39,0.00019315,2]
[329198630,1718171459703,-500.0,0.00019315,2]
[329198631,1718171459714,-5888.99,0.00019315,2]
[329198632,1718171459725,-500.0,0.00019315,2]
[329198633,1718171459738,-500.0,0.00019315,2]
[329198634,1718171459749,-500.0,0.00019315,2]
[329198635,1718171459759,-1377.47,0.00019315,2]
[329198636,1718171459770,-376.86874583,0.00019315,2]
[329198637,1718171459780,-478.4702197,0.00019315,2]
[329198638,1718171459791,-819.87,0.00019315,2]
[329198639,1718171459805,-3362.2,0.00019315,2]
[329198640,1718171459816,-751.05,0.00019315,2]
[329198641,1718171459828,-1463.76,0.00019315,2]
[329198642,1718171459843,-500.0,0.00019315,2]
[329198643,1718171459862,-500.0,0.00019315,2]
[329198644,1718171459879,-500.0,0.00019315,2]
[329198645,1718171459890,-500.0,0.00019315,2]
[329198646,1718171459900,-2614.11,0.00019315,2]
[329198647,1718171459915,-500.0,0.00019315,2]
[329198648,1718171459926,-913.63,0.00019315,2]
[329198649,1718171459936,-500.0,0.00019315,2]
[329198650,1718171459947,-500.0,0.00019315,2]
[329198651,1718171459957,-1206.16,0.00019315,2]
[329198652,1718171459968,-747.13,0.00019315,2]
[329198653,1718171459981,-796.99,0.00019315,2]
[329198654,1718171459993,-1951.95,0.00019315,2]
[329198655,1718171460005,-2331.93,0.00019315,2]
[329198656,1718171460032,-1204.68,0.00019315,2]
[329198657,1718171460044,-585.13,0.00019315,2]
[329198658,1718171460061,-888.89,0.00019315,2]
[329198659,1718171460074,-1357.09,0.00019315,2]
[329198660,1718171460084,-7232.63,0.00019315,2]
[329198661,1718171460099,-1913.5,0.00019315,2]
[329198662,1718171460112,-500.0,0.00019315,2]
[329198663,1718171460122,-2894.23,0.00019315,2]
[329198664,1718171460133,-843.11,0.00019315,2]
[329198665,1718171460144,-840.77,0.00019315,2]
[329198666,1718171460155,-500.0,0.00019315,2]
[329198667,1718171460165,-500.0,0.00019315,2]
[329198668,1718171460184,-1142.19,0.00019315,2]
[329198669,1718171460195,-511.65,0.00019315,2]
[329198670,1718171460206,-3602.12,0.00019315,2]
[329198671,1718171460216,-500.0,0.00019315,2]
[329198672,1718171460228,-500.0,0.00019315,2]
[329198673,1718171460238,-500.0,0.00019315,2]
[329198674,1718171460249,-500.0,0.00019315,2]
[329198675,1718171460261,-500.0,0.00019315,2]
[329198676,1718171460271,-2892.9,0.00019315,2]
[329198677,1718171460285,-1412.48,0.00019315,2]
[329198678,1718171460297,-509.91941249,0.00019315,2]
[329198679,1718171460307,-531.37,0.00019315,2]
[329198680,1718171460319,-1734.65,0.00019315,2]
[329198681,1718171460332,-504.99836414,0.00019315,2]
[329198682,1718171460342,-500.0,0.00019315,2]
[329198683,1718171460353,-1031.37,0.00019315,2]
[329198684,1718171460364,-1825.27,0.00019315,2]
[329198685,1718171460375,-500.0,0.00019315,2]
[329198686,1718171460388,-500.0,0.00019315,2]
[329198687,1718171460400,-151.0,0.00019315,2]
[329198688,1718171460412,-151.0,0.00019315,2]
[329198689,1718171460428,-500.0,0.00019315,2]
[329198690,1718171460439,-500.0,0.00019315,2]
[329198691,1718171460450,-3668.82,0.00019315,2]
[329198692,1718171460463,-500.0,0.00019315,2]
[329198693,1718171460473,-1007.17,0.00019315,2]
[329198694,1718171460483,-547.21,0.00019315,2]
[329198695,1718171460526,-768.62,0.00019315,2]
[329198696,1718171460537,-500.0,0.00019315,2]
[329198697,1718171460549,-1673.84,0.00019315,2]
[329198698,1718171460567,-2673.16,0.00019315,2]
[329198699,1718171460591,-722.51,0.00019315,2]
[329198700,1718171460616,-500.0,0.00019315,2]
[329198701,1718171460632,-151.0,0.00019315,2]
[329198702,1718171460645,-151.0,0.00019315,2]
[329198703,1718171460659,-9860.26,0.00019315,2]
[329198704,1718171460671,-500.0,0.00019315,2]
[329198705,1718171460687,-633.42,0.00019315,2]
[329198706,1718171460710,-1057.81,0.00019315,2]
[329198707,1718171460725,-2423.67,0.00019315,2]
[329198708,1718171460737,-950.84,0.00019315,2]
[329198709,1718171460749,-151.0,0.00019315,2]
[329198710,1718171460760,-896.1,0.00019315,2]
[329198711,1718171460776,-500.0,0.00019315,2]
[329198712,1718171460793,-151.0,0.00019315,2]
[329198713,1718171460807,-500.0,0.00019315,2]
[329198714,1718171460825,-500.0,0.00019315,2]
[329198715,1718171460836,-2039.03,0.00019315,2]
[329198716,1718171460847,-2127.16,0.00019315,2]
[329198717,1718171460858,-713.21,0.00019315,2]
[329198718,1718171460873,-533.19,0.00019315,2]
[329198719,1718171460893,-3325.32,0.00019315,2]
[329198720,1718171460903,-2674.0,0.00019315,2]
[329198721,1718171460916,-323.34801018,0.00019315,2]
[329198722,1718171461781,-400.58828703,0.000139,2]
[329198723,1718171461795,-381.057291,0.00019169,2]
[329198724,1718171461813,-151.0,0.00019169,2]
[329198725,1718171461825,-151.0,0.00019169,2]
[329198726,1718171461836,-381.057291,0.00019178,2]
[329198727,1718171461846,-151.0,0.00019178,2]
[329198728,1718171461857,-151.0,0.00019178,2]
[329198729,1718171461867,-3805.28198982,0.00019315,2]
[329198730,1718171461878,-121.55849861,0.00019315,2]
[329198731,1718171461903,-448.61150139,0.00019315,2]
[329198732,1718171461923,-1707.88,0.00019315,2]
[329198733,1718171461940,-1028.39,0.00019315,2]
[329198734,1718171461956,-500.0,0.00019315,2]
[329198735,1718171461973,-727.65,0.00019315,2]
[329198736,1718171461986,-500.0,0.00019315,2]
[329198737,1718171461997,-700.05,0.00019315,2]
[329198738,1718171462007,-679.42,0.00019315,2]
[329198739,1718171462022,-500.0,0.00019315,2]
[329198740,1718171462034,-500.0,0.00019315,2]
[329198741,1718171462053,-768.85,0.00019315,2]
[329198742,1718171462066,-1640.25879233,0.00019315,2]
[329198743,1718171462102,-2982.45120767,0.00019315,2]
[329198744,1718171462114,-2297.84,0.00019315,2]
[329198745,1718171462131,-500.0,0.00019315,2]
[329198746,1718171462146,-607.82,0.00019315,2]
[329198747,1718171462158,-2368.53,0.00019315,2]
[329198748,1718171462168,-1916.52,0.00019315,2]
[329198749,1718171462178,-151.0,0.00019315,2]
[329198750,1718171462189,-151.0,0.00019315,2]
[329198751,1718171462200,-1984.41,0.00019315,2]
[329198752,1718171462211,-679.36,0.00019315,2]
[329198753,1718171462221,-1477.55,0.00019315,2]
[329198754,1718171462232,-811.47,0.00019315,2]
[329198755,1718171462242,-500.0,0.00019315,2]
[329198756,1718171462264,-833.33,0.00019315,2]
[329198757,1718171462275,-500.0,0.00019315,2]
[329198758,1718171462296,-3834.01,0.00019315,2]
[329198759,1718171462308,-151.0,0.00019315,2]
[329198760,1718171462318,-151.0,0.00019315,2]
[329198761,1718171462329,-500.0,0.00019315,2]
[329198762,1718171462340,-500.0,0.00019315,2]
[329198763,1718171462350,-2648.59,0.00019315,2]
[329198764,1718171462361,-459.514807,0.00019315,2]
[329198765,1718171462371,-459.514807,0.00019315,2]
[329198766,1718171462380,-3816.62296096,0.00019315,2]
[329198772,1718171654740,-4100.0,0.00013122,2]
[329198773,1718171654777,-700.0,0.00013122,2]
[329198774,1718171654810,-150.0,0.00013193,2]
[329198775,1718171654847,-19572.59679997,0.00013194,2]
[329198776,1718171654894,-9209.97158573,0.00013276,2]
[329198777,1718171654939,-381.3945,0.000139,2]
[329198778,1718171654970,-2500.0,0.000139,2]
[329198779,1718171655002,-4100.0,0.00013944,2]
[329198780,1718171655031,-700.0,0.00013944,2]
[329198781,1718171655063,-4100.0,0.00014766,2]
[329198782,1718171655099,-700.0,0.00014766,2]
[329198783,1718171655139,-2200.0,0.00014766,2]
[329198784,1718171655185,-500.0,0.00014766,2]
[329198785,1718171655240,-788.6,0.00015004,2]
[329198786,1718171655275,-4100.0,0.00015588,2]
[329198787,1718171655311,-700.0,0.00015588,2]
[329198788,1718171655339,-2200.0,0.00015588,2]
[329198789,1718171655388,-500.0,0.00015588,2]
[329198790,1718171655420,-500.0,0.00016136,2]
[329198791,1718171655455,-2200.0,0.0001641,2]
[329198792,1718171655496,-500.0,0.0001641,2]
[329198793,1718171655536,-8100.08828766,0.00017231,2]
[329198794,1718171655591,-1497.34882664,0.00017231,2]
[329198795,1718171678447,-989.83257707,0.00017231,2]
[329198796,1718171678479,-4100.0,0.00017232,2]
[329198797,1718171678506,-700.0,0.00017232,2]
[329198798,1718171678538,-788.6,0.00017268,2]
[329198799,1718171678586,-752.96697792,0.00017382,2]
[329198800,1718171678615,-500.0,0.0001778,2]
[329198801,1718171678647,-355.0,0.000179,2]
[329198802,1718171678682,-4100.0,0.00018328,2]
[329198803,1718171678713,-700.0,0.00018328,2]
[329198804,1718171678744,-516.70774642,0.00018876,2]
[329198805,1718171678775,-1074.11934744,0.00018929,2]
[329198806,1718171678807,-1064.64161362,0.00018929,2]
[329198807,1718171678837,-1072.22229588,0.00018929,2]
[329198808,1718171678866,-53285.90944165,0.00019,2]
[329198809,1718171772432,1438.37274566,0.000273,60]
[329198810,1718171909989,500.0,0.000264,60]
[329198816,1718172434157,-158.42799102,0.00013415,2]
[329198817,1718172434204,-263.93289625,0.00013416,2]
[329198818,1718172434232,-546.04285463,0.00013416,2]
[329198819,1718172434258,-538.00372128,0.00013416,2]
[329198820,1718172434285,-150.0,0.0001342,2]
[329198821,1718172434313,-167.99,0.00013422,2]
[329198822,1718172434348,-928.31333237,0.0001461,2]
[329198823,1718172434376,-210.0,0.00014762,2]
[329198824,1718172434404,-300.0,0.00014899,2]
[329198825,1718172434430,-4341.06329791,0.000149,2]
[329198827,1718172551610,-1334.45330209,0.000149,2]
[329198828,1718172551644,-2487.18140371,0.00015,2]
[329198829,1718172551676,-4220.14599787,0.0001501,2]
[329198830,1718172551709,-300.0,0.0001501,2]
[329198831,1718172551741,-128.90800251,0.0001501,2]
[329198836,1718172632486,-972.55,0.00014729,2]
[329198837,1718172632497,-21.09199749,0.0001501,2]
[329198838,1718172632509,-2562.00628251,0.0001501,2]
[329198839,1718172632528,-13406.44212859,0.0001501,2]
[329198840,1718172632551,-19033.14279594,0.0001501,2]
[329198841,1718172632568,-4677.21912693,0.00015011,2]
[329198842,1718172632987,-3237.68087307,0.00015011,2]
[329198843,1718172632998,-462.52,0.00015011,2]
[329198844,1718172633009,-158.98333923,0.00015341,2]
[329198845,1718172633020,-2260.23804581,0.00015504,2]
[329198846,1718172633031,-151.90326297,0.00015681,2]
[329198854,1718172633706,-826.09673703,0.00015681,2]
[329198856,1718172633717,-357.0,0.00015681,2]
[329198857,1718172633728,-1546.048,0.00015681,2]
[329198859,1718172633739,-446.0,0.00015681,2]
[329198861,1718172633751,-165.0,0.00015681,2]
[329198863,1718172633782,-808.0,0.00015681,2]
[329198865,1718172633820,-2407.0,0.00015681,2]
[329198867,1718172633832,-150.0,0.00015681,2]
[329198869,1718172633850,-3174.0,0.00015681,2]
[329198871,1718172633869,-1304.0,0.00015681,2]
[329198873,1718172633885,-546.0,0.00015681,2]
[329198875,1718172633918,-1999.183,0.00015681,2]
[329198877,1718172633948,-5153.0,0.00015782,2]
[329198879,1718172633960,-290.0,0.00015782,2]
[329198881,1718172633978,-5781.0,0.00015782,2]
[329198882,1718172633991,-4919.764,0.00015782,2]
[329198884,1718172634002,-500.0,0.00016136,2]
[329198886,1718172634016,-1700.0,0.00016136,2]
[329198888,1718172634032,-500.0,0.00016136,2]
[329198891,1718172634049,-2200.0,0.00016136,2]
[329198893,1718172634065,-200.0,0.00016401,2]
[329198895,1718172634086,-250.0,0.00016401,2]
[329198897,1718172634107,-150.99,0.00016401,2]
[329198899,1718172634120,-2434.01,0.00016452,2]
[329198901,1718172634132,-250.0,0.00016597,2]
[329198904,1718172634157,-153.1,0.00016621,2]
[329198906,1718172634187,-499.99,0.00016621,2]
[329198908,1718172634217,-186.25,0.00016621,2]
[329198910,1718172634235,-150.0,0.00016665,2]
[329198912,1718172634255,-1840.83,0.00016698,2]
[329198914,1718172634281,-23900.0,0.00016698,2]
[329198916,1718172634299,-1286.17,0.00016755,2]
[329198918,1718172634313,-715.86,0.00016769,2]
[329198920,1718172634333,-354.85,0.00016773,2]
[329198922,1718172634354,-519.4,0.00016774,2]
[329198924,1718172634365,-160.61,0.00016895,2]
[329198926,1718172634393,-167.0,0.0001692,2]
[329198928,1718172634406,-1700.0,0.00016958,2]
[329198930,1718172634441,-2200.0,0.00016958,2]
[329198932,1718172634453,-972.55,0.00016993,2]
[329198935,1718172634476,-177.55,0.00017153,2]
[329198937,1718172634487,-160.61,0.00017189,2]
[329198939,1718172634499,-6076.73,0.0001726,2]
[329198941,1718172634512,-168.65,0.00017324,2]
[329198942,1718172634525,-1000.0,0.00017395,2]
[329198943,1718172634540,-160.61,0.00017482,2]
[329198945,1718172634563,-9999.99,0.00017483,2]
[329198947,1718172634595,-500.0,0.000175,2]
[329198949,1718172634608,-500.0,0.000175,2]
[329198951,1718172634620,-500.0,0.000175,2]
[329198953,1718172634637,-500.0,0.000175,2]
[329198955,1718172634651,-500.0,0.000175,2]
[329198957,1718172634679,-500.0,0.000175,2]
[329198959,1718172634691,-500.0,0.000175,2]
[329198961,1718172634713,-500.0,0.000175,2]
[329198962,1718172634725,-500.0,0.000175,2]
[329198964,1718172634736,-500.0,0.000175,2]
[329198966,1718172634747,-500.0,0.000175,2]
[329198968,1718172634760,-500.0,0.000175,2]
[329198970,1718172634773,-500.0,0.000175,2]
[329198971,1718172634785,-500.0,0.000175,2]
[329198973,1718172634806,-500.0,0.000175,2]
[329198975,1718172634819,-500.0,0.000175,2]
[329198977,1718172634837,-500.0,0.000175,2]
[329198979,1718172634848,-500.0,0.000175,2]
[329198981,1718172634861,-500.0,0.000175,2]
[329198982,1718172634879,-500.0,0.000175,2]
[329198984,1718172634916,-500.0,0.000175,2]
[329198987,1718172634962,-500.0,0.000175,2]
[329198989,1718172634975,-500.0,0.000175,2]
[329198991,1718172634988,-500.0,0.000175,2]
[329198993,1718172634999,-500.0,0.000175,2]
[329198995,1718172635011,-500.0,0.000175,2]
[329198997,1718172635024,-383.0,0.000175,2]
[329198999,1718172635036,-1700.0,0.00017506,2]
[329199001,1718172635048,-2200.0,0.00017506,2]
[329199003,1718172635059,-153.1,0.00017729,2]
[329199005,1718172635072,-160.61,0.00017776,2]
[329199007,1718172635084,-500.0,0.0001778,2]
[329199009,1718172635095,-500.0,0.0001778,2]
[329199011,1718172635106,-2487.18140371,0.00017807,2]
[329199013,1718172635116,-4220.14599787,0.00017807,2]
[329199015,1718172635127,-1700.0,0.00018054,2]
[329199017,1718172635138,-2200.0,0.00018054,2]
[329199019,1718172635148,-300.0,0.00018148,2]
[329199021,1718172635159,-1258.4,0.00018241,2]
[329199023,1718172635169,-518.393,0.00018681,2]
[329199025,1718172635179,-2151.85,0.00018681,2]
[329199027,1718172635189,-1304.0,0.00018681,2]
[329199029,1718172635200,-546.0,0.00018681,2]
[329199031,1718172635210,-153.1,0.00018837,2]
[329199033,1718172635221,-500.0,0.00018876,2]
[329199035,1718172635231,-500.0,0.00018876,2]
[329199037,1718172635242,-300.3983,0.00018878,2]
[329199039,1718172635253,-886.40752803,0.00018976,2]
[329199063,1718172635494,-193.21503737,0.00018976,2]
[329199067,1718172635520,-525.60111443,0.00018976,2]
[329199069,1718172635531,-217.94215905,0.00018976,2]
[329199071,1718172635542,-159.06838526,0.00018976,2]
[329199073,1718172635552,-235.55230443,0.00018976,2]
[329199075,1718172635561,-537.64011299,0.00018976,2]
[329199077,1718172635571,-536.56302442,0.00018977,2]
[329199079,1718172635582,-176.56973141,0.00018977,2]
[329199081,1718172635592,-3178.97077408,0.00018977,2]
[329199083,1718172635602,-167.75806264,0.00018978,2]
[329199084,1718172635612,-1694.1875765,0.00018978,2]
[329199086,1718172635625,-128007.2426,0.00018978,2]
[329199088,1718172635635,-489016.5830399,0.00019,2]
[329199267,1718172638659,-1077.088,0.00015782,2]
[329199268,1718172638678,-3817.68102435,0.00019,2]
[329199291,1718172639094,-3606.75034183,0.00019,2]
[329199293,1718172639108,-354.58140772,0.00019,2]
[329199295,1718172639121,-1006.28438163,0.00019,2]
[329199336,1718172639711,-785.60005,0.00019,2]
[329199507,1718172642028,-878.17500003,0.00019,2]
[329199592,1718172644103,-5696.36779718,0.00019,2]
[329199593,1718172644124,-1538.06401566,0.00019,2]
[329199594,1718172644137,-659.94278815,0.00019,2]
[329199595,1718172644220,-1.03409624,0.00019,2]
[329199596,1718172644233,-49387.52625496,0.00019,2]
[329199597,1718172644436,-716.44296751,0.00019,2]
[329199598,1718172644455,-540.03696323,0.00019,2]
[329199599,1718172644470,-1037353.55840031,0.00019,2]
[329199600,1718172644488,-526.55,0.00019039,2]
[329199601,1718172644500,-274.24691845,0.00019052,2]
[329199602,1718172644517,-500.0,0.00019068,2]
[329199603,1718172644542,-10000.0,0.00019068,2]
[329199604,1718172644555,-1000.0,0.00019068,2]
[329199605,1718172644566,-107160.3475,0.00019078,2]
[329199606,1718172644576,-496.8337,0.00019078,2]
[329199607,1718172644586,-7500.0,0.00019078,2]
[329199608,1718172644597,-3666.038,0.00019078,2]
[329199609,1718172644607,-2058.97745,0.0001912,2]
[329199610,1718172644618,-382.84586015,0.00019126,2]
[329199611,1718172644628,-1700.0,0.0001915,2]
[329199612,1718172644639,-2200.0,0.0001915,2]
[329199613,1718172644660,-200.0,0.0001916,2]
[329199614,1718172644674,-200.0,0.00019161,2]
[329199615,1718172644684,-500.0,0.00019161,2]
[329199616,1718172644695,-200.0,0.00019161,2]
[329199617,1718172644705,-179.52164026,0.00019168,2]
[329199618,1718172644716,-618.8768531,0.00019176,2]
[329199620,1718172644726,-200.0,0.00019176,2]
[329199622,1718172644744,-216.99201886,0.00019176,2]
[329199624,1718172644758,-155.0,0.00019176,2]
[329199625,1718172644783,-155.69313599,0.00019176,2]
[329199626,1718172644798,-412.69044101,0.00019176,2]
[329199627,1718172644809,-649.34168046,0.00019176,2]
[329199628,1718172644823,-33727.53088066,0.00019176,2]
[329199629,1718172644836,-2622.27042112,0.00019177,2]
[329199630,1718172644856,-500.0,0.00019178,2]
[329199631,1718172644873,-173.11948159,0.00019178,2]
[329199632,1718172644884,-500.0,0.00019178,2]
[329199633,1718172644894,-500.0,0.00019178,2]
[329199634,1718172644905,-500.0,0.00019178,2]
[329199635,1718172644916,-500.0,0.00019178,2]
[329199636,1718172644932,-500.0,0.00019178,2]
[329199637,1718172644964,-500.0,0.00019178,2]
[329199638,1718172644975,-500.0,0.00019178,2]
[329199639,1718172644986,-500.0,0.00019178,2]
[329199640,1718172645000,-500.0,0.00019178,2]
[329199641,1718172645012,-500.0,0.00019178,2]
[329199642,1718172645023,-500.0,0.00019178,2]
[329199643,1718172645034,-500.0,0.00019178,2]
[329199644,1718172645044,-500.0,0.00019178,2]
[329199645,1718172645056,-500.0,0.00019178,2]
[329199646,1718172645067,-500.0,0.00019178,2]
[329199647,1718172645077,-500.0,0.00019178,2]
[329199648,1718172645088,-500.0,0.00019178,2]
[329199649,1718172645099,-500.0,0.00019178,2]
[329199650,1718172645109,-278.0151068,0.00019178,2]
[329199651,1718172645120,-500.0,0.00019178,2]
[329199652,1718172645132,-500.0,0.00019178,2]
[329199653,1718172645142,-472.81666468,0.00019178,2]
[329199654,1718172645152,-500.0,0.00019178,2]
[329199655,1718172645162,-500.0,0.00019178,2]
[329199656,1718172645172,-500.0,0.00019178,2]
[329199657,1718172645184,-500.0,0.00019178,2]
[329199658,1718172645194,-500.0,0.00019178,2]
[329199659,1718172645208,-359.6081438,0.00019178,2]
[329199660,1718172645218,-500.0,0.00019178,2]
[329199661,1718172645228,-566.52448445,0.00019178,2]
[329199662,1718172645239,-500.0,0.00019178,2]
[329199663,1718172645250,-500.0,0.00019178,2]
[329199664,1718172645260,-514.93,0.00019178,2]
[329199665,1718172645270,-305.57994939,0.00019178,2]
[329199666,1718172645280,-500.0,0.00019178,2]
[329199667,1718172645292,-500.0,0.00019178,2]
[329199668,1718172645303,-500.0,0.00019178,2]
[329199669,1718172645314,-500.0,0.00019178,2]
[329199670,1718172645325,-500.0,0.00019178,2]
[329199671,1718172645335,-500.0,0.00019178,2]
[329199672,1718172645346,-500.0,0.00019178,2]
[329199673,1718172645356,-500.0,0.00019178,2]
[329199674,1718172645367,-500.0,0.00019178,2]
[329199675,1718172645378,-466.0,0.00019178,2]
[329199676,1718172645388,-884.4,0.00019178,2]
[329199677,1718172645400,-500.0,0.00019178,2]
[329199678,1718172645412,-327.18015907,0.00019178,2]
[329199679,1718172645423,-500.0,0.00019178,2]
[329199680,1718172645439,-500.0,0.00019178,2]
[329199681,1718172645450,-500.0,0.00019178,2]
[329199682,1718172645460,-500.0,0.00019178,2]
[329199683,1718172645471,-500.0,0.00019178,2]
[329199684,1718172645481,-500.0,0.00019178,2]
[329199685,1718172645492,-545.27010362,0.00019178,2]
[329199686,1718172645502,-500.0,0.00019178,2]
[329199687,1718172645515,-500.0,0.00019178,2]
[329199688,1718172645528,-691.31,0.00019178,2]
[329199689,1718172645539,-287.41201663,0.00019178,2]
[329199690,1718172645550,-500.0,0.00019178,2]
[329199691,1718172645560,-500.0,0.00019178,2]
[329199692,1718172645572,-500.0,0.00019178,2]
[329199693,1718172645583,-500.0,0.00019178,2]
[329199694,1718172645593,-500.0,0.00019178,2]
[329199695,1718172645605,-500.0,0.00019178,2]
[329199696,1718172645615,-500.0,0.00019178,2]
[329199697,1718172645625,-500.0,0.00019178,2]
[329199698,1718172645635,-500.0,0.00019178,2]
[329199699,1718172645645,-297.81325005,0.00019178,2]
[329199700,1718172645656,-500.0,0.00019178,2]
[329199701,1718172645666,-500.0,0.00019178,2]
[329199702,1718172645675,-500.0,0.00019178,2]
[329199703,1718172645686,-500.0,0.00019178,2]
[329199704,1718172645695,-500.0,0.00019178,2]
[329199705,1718172645705,-500.0,0.00019178,2]
[329199706,1718172645715,-500.0,0.00019178,2]
[329199707,1718172645726,-500.0,0.00019178,2]
[329199708,1718172645736,-560.0547213,0.00019178,2]
[329199709,1718172645746,-500.0,0.00019178,2]
[329199710,1718172645758,-500.0,0.00019178,2]
[329199711,1718172645768,-500.0,0.00019178,2]
[329199712,1718172645779,-500.0,0.00019178,2]
[329199713,1718172645789,-500.0,0.00019178,2]
[329199714,1718172645799,-500.0,0.00019178,2]
[329199715,1718172645809,-500.0,0.00019178,2]
[329199716,1718172645820,-500.0,0.00019178,2]
[329199717,1718172645832,-500.0,0.00019178,2]
[329199718,1718172645842,-500.0,0.00019178,2]
[329199719,1718172645855,-500.0,0.00019178,2]
[329199720,1718172645865,-500.0,0.00019178,2]
[329199721,1718172645875,-500.0,0.00019178,2]
[329199722,1718172645885,-500.0,0.00019178,2]
[329199723,1718172645896,-500.0,0.00019178,2]
[329199724,1718172645906,-500.0,0.00019178,2]
[329199725,1718172645916,-500.0,0.00019178,2]
[329199726,1718172645926,-677.66,0.00019178,2]
[329199727,1718172645956,-500.0,0.00019178,2]
[329199728,1718172645965,-500.0,0.00019178,2]
[329199729,1718172645976,-500.0,0.00019178,2]
[329199730,1718172645986,-500.0,0.00019178,2]
[329199731,1718172645997,-500.0,0.00019178,2]
[329199732,1718172646007,-500.0,0.00019178,2]
[329199733,1718172646018,-500.0,0.00019178,2]
[329199734,1718172646028,-500.0,0.00019178,2]
[329199735,1718172646039,-500.0,0.00019178,2]
[329199736,1718172646050,-864.12,0.00019178,2]
[329199737,1718172646061,-500.0,0.00019178,2]
[329199738,1718172646072,-500.0,0.00019178,2]
[329199739,1718172646083,-512.79,0.00019178,2]
[329199740,1718172646095,-500.0,0.00019178,2]
[329199741,1718172646105,-500.0,0.00019178,2]
[329199742,1718172646118,-500.0,0.00019178,2]
[329199743,1718172646130,-500.0,0.00019178,2]
[329199744,1718172646140,-500.0,0.00019178,2]
[329199745,1718172646151,-500.0,0.00019178,2]
[329199746,1718172646162,-1392.1,0.00019178,2]
[329199747,1718172646173,-3428.39,0.00019178,2]
[329199748,1718172646184,-500.0,0.00019178,2]
[329199749,1718172646194,-558.81,0.00019178,2]
[329199750,1718172646215,-452.02346243,0.00019178,2]
[329199751,1718172646226,-224.02122844,0.00019178,2]
[329199752,1718172646241,-500.0,0.00019178,2]
[329199753,1718172646254,-397.21279213,0.00019178,2]
[329199754,1718172646265,-500.0,0.00019178,2]
[329199755,1718172646277,-500.0,0.00019178,2]
[329199756,1718172646288,-500.0,0.00019178,2]
[329199757,1718172646299,-500.0,0.00019178,2]
[329199759,1718172646311,-537.28,0.00019178,2]
[329199761,1718172646321,-500.0,0.00019178,2]
[329199762,1718172646331,-500.0,0.00019178,2]
[329199764,1718172646340,-500.0,0.00019178,2]
[329199766,1718172646353,-500.0,0.00019178,2]
[329199768,1718172646363,-541.81,0.00019178,2]
[329199769,1718172646373,-500.0,0.00019178,2]
[329199771,1718172646384,-500.0,0.00019178,2]